fUST/lending_fUST_20260614
["ID","MTS","AMOUNT","RATE_DAILY","PERIOD"]
[424987882,1781375438000,-500.0,0.00027999,2]
[424987881,1781375438000,-156.362,0.00027999,18]
[424987880,1781375438000,-578.9,0.0002799,3]
[424987876,1781375438000,-530.0,0.000279,2]
[424987878,1781375438000,-544.80445724,0.000279,2]
[424987877,1781375438000,-508.17757242,0.000279,2]
[424987875,1781375438000,-259.71357126,0.000279,2]
[424987879,1781375438000,-259.71357126,0.000279,2]
[424987874,1781375438000,-259.71357126,0.000279,2]
[424987873,1781375438000,-259.71357126,0.000279,2]
[424987872,1781375438000,-259.71357126,0.000279,2]
[424987869,1781375438000,-259.71357126,0.00027899,2]
[424987870,1781375438000,-259.71357126,0.00027899,2]
[424987867,1781375438000,-195.79566654,0.00027899,2]
[424987868,1781375438000,-63.91790472,0.00027899,2]
[424987866,1781375438000,-259.71357131,0.00027899,2]
[424987865,1781375438000,-184.69660959,0.0002775,7]
[424987861,1781375438000,-167.63,0.00026027,2]
[424987864,1781375438000,-258.70836223,0.00027666,2]
[424987863,1781375438000,-131.41516334,0.00026759,7]
[424987862,1781375438000,-152.0,0.00026603,7]
[424987871,1781375438000,-259.71357126,0.00027899,2]
[424987888,1781375438000,-500.0,0.00027999,2]
[424987899,1781375438000,-442.06021047,0.00027999,2]
[424987891,1781375438000,-500.0,0.00027999,2]
[424987915,1781375438000,-19532.03693434,0.00028,2]
[424987914,1781375438000,-385.51274706,0.00027999,2]
[424987912,1781375438000,-500.0,0.00027999,2]
[424987913,1781375438000,-500.0,0.00027999,2]
[424987910,1781375438000,-500.0,0.00027999,2]
[424987911,1781375438000,-500.0,0.00027999,2]
[424987908,1781375438000,-500.0,0.00027999,2]
[424987907,1781375438000,-500.0,0.00027999,2]
[424987909,1781375438000,-500.0,0.00027999,2]
[424987887,1781375438000,-500.0,0.00027999,2]
[424987905,1781375438000,-500.0,0.00027999,2]
[424987902,1781375438000,-500.0,0.00027999,2]
[424987906,1781375438000,-500.0,0.00027999,2]
[424987898,1781375438000,-500.0,0.00027999,2]
[424987889,1781375438000,-290.7306891,0.00027999,2]
[424987890,1781375438000,-500.0,0.00027999,2]
[424987893,1781375438000,-500.0,0.00027999,2]
[424987892,1781375438000,-500.0,0.00027999,2]
[424987894,1781375438000,-500.0,0.00027999,2]
[424987895,1781375438000,-500.0,0.00027999,2]
[424987896,1781375438000,-500.0,0.00027999,2]
[424987903,1781375438000,-500.0,0.00027999,2]
[424987904,1781375438000,-500.0,0.00027999,2]
[424987900,1781375438000,-500.0,0.00027999,2]
[424987897,1781375438000,-500.0,0.00027999,2]
[424987901,1781375438000,-500.0,0.00027999,2]
[424988076,1781375446000,-11626.0652754,0.00028,2]
[424988075,1781375446000,-227.64271894,0.000279,2]
[424988077,1781375587000,-165.1113,0.000263,2]
[424988079,1781375604000,-158.24379248,0.00024481,2]
[424988080,1781375621000,-171.01299991,0.00024481,2]
[424988081,1781375637000,-316.48758497,0.00025355,2]
[424988104,1781376632000,-5000.0,0.00016934,2]
[424988106,1781376632000,-909.838,0.00017105,2]
[424988105,1781376632000,-399.86526697,0.00017105,2]
[424988202,1781376638000,-3690.29673303,0.00017105,2]
[424988203,1781376638000,-4190.73607181,0.00017278,2]
[424988209,1781376638000,-237.36568873,0.00024946,2]
[424988207,1781376638000,-153.91169992,0.00024072,2]
[424988204,1781376638000,-155.0,0.00018538,2]
[424988206,1781376638000,-293.0,0.00020207,2]
[424988205,1781376638000,-155.0,0.0001928,2]
[424988210,1781376638000,-307.82339984,0.00024946,2]
[424988211,1781376638000,-6737.3872,0.00025444,2]
[424988212,1781376638000,-474.73137745,0.0002553,2]
[424988222,1781376638000,-257.88213267,0.000273,2]
[424988216,1781376638000,-152.0,0.00026878,7]
[424988208,1781376638000,-454.4726976,0.00024429,2]
[424988220,1781376638000,-184.086037,0.00027162,2]
[424988221,1781376638000,-154.62,0.00027257,2]
[424988214,1781376638000,-580.50162977,0.000263,7]
[424988217,1781376638000,-152.0,0.00027048,7]
[424988215,1781376638000,-580.50162977,0.00026826,7]
[424988213,1781376638000,-461.73509976,0.0002553,2]
[424988219,1781376638000,-1662.76302843,0.000271,2]
[424988223,1781376638000,-321.1437634,0.000273,2]
[424988224,1781376638000,-1662.76302843,0.000273,2]
[424988225,1781376638000,-343.76026201,0.00027433,2]
[424988226,1781376638000,-216.831,0.00027512,16]
[424988227,1781376638000,-579.02589607,0.000276,2]
[424988228,1781376638000,-1583.6599481,0.000276,2]
[424988218,1781376638000,-579.02589607,0.000271,2]
[424988233,1781376641000,-474.29906762,0.0002779,2]
[424988232,1781376641000,-580.50162977,0.00027615,7]
[424988234,1781376641000,-586.06580219,0.00027799,2]
[424988235,1781376641000,-17820.20373751,0.00027799,2]
[424988231,1781376641000,-79.10308033,0.000276,2]
[424988242,1781376643000,-317.989,0.00027799,2]
[424988241,1781376643000,-443.0,0.00027799,2]
[424988240,1781376643000,-635.60939374,0.00027799,2]
[424988239,1781376643000,-1190.28945249,0.00027799,2]
[424988238,1781376643000,-36358.79342462,0.00027799,2]
[424988237,1781376643000,-1329.07474658,0.00027799,2]
[424988511,1781376646000,-2575.66618234,0.00027799,2]
[424989897,1781379037000,-5000.0,0.00018914,2]
[424989905,1781379038000,-21199.3308541,0.00025444,2]
[424989901,1781379038000,-2115.76350864,0.000243,30]
[424989903,1781379038000,-500.0,0.00025443,2]
[424989902,1781379038000,-199.105,0.00025443,10]
[424989900,1781379038000,-363.6865781,0.0002408,2]
[424989899,1781379038000,-150.33160286,0.00024074,2]
[424989898,1781379038000,-5000.0,0.00019105,2]
[424989904,1781379038000,-500.0,0.00025443,2]
[424989928,1781379046000,-984.96441703,0.00025444,2]
[424989931,1781379187000,-173.24720684,0.00022742,2]
[424989932,1781379204000,-160.0,0.00020438,3]
[424989933,1781379221000,-225.49740429,0.00024952,2]
[424989934,1781379238000,-509.02189219,0.00025316,2]
[424989950,1781380231000,-500.0,0.00025443,2]
[424989952,1781380231000,-4851.57354042,0.00025444,2]
[424989951,1781380231000,-500.0,0.00025443,2]
[424989949,1781380231000,-442.67912976,0.00025424,2]
[424989945,1781380231000,-304.00063266,0.00025089,2]
[424989947,1781380231000,-164.02470756,0.00025251,2]
[424989948,1781380231000,-754.44126133,0.00025422,2]
[424989946,1781380231000,-547.20113879,0.00025089,2]
[424989944,1781380231000,-187.91450357,0.00024952,2]
[424989943,1781380231000,-394.23515361,0.00024616,2]
[424990033,1781380238000,-151.0,0.00025509,2]
[424990034,1781380238000,-151.0,0.00025509,2]
[424990037,1781380238000,-939.33198915,0.00025509,2]
[424990036,1781380238000,-189.78448419,0.00025509,2]
[424990035,1781380238000,-151.0,0.00025509,2]
[424990059,1781380240000,-500.0,0.00025521,2]
[424990061,1781380240000,-500.0,0.00025521,2]
[424990060,1781380240000,-500.0,0.00025521,2]
[424990058,1781380240000,-549.34526704,0.00025521,2]
[424990064,1781380240000,-493.99615222,0.00025521,2]
[424990056,1781380240000,-500.0,0.00025521,2]
[424990069,1781380240000,-1236.466704,0.00025521,2]
[424990079,1781380240000,-366.139405,0.00025522,2]
[424990068,1781380240000,-1236.466704,0.00025521,2]
[424990071,1781380240000,-802.78354003,0.00025521,2]
[424990078,1781380240000,-306.193536,0.00025522,2]
[424990075,1781380240000,-592.413941,0.00025521,2]
[424990080,1781380240000,-306.193536,0.00025522,2]
[424990063,1781380240000,-500.0,0.00025521,2]
[424990070,1781380240000,-1236.466704,0.00025521,2]
[424990062,1781380240000,-500.0,0.00025521,2]
[424990046,1781380240000,-566.81,0.00025513,3]
[424990045,1781380240000,-2073.22100728,0.00025509,2]
[424990047,1781380240000,-283.4,0.00025513,3]
[424990051,1781380240000,-500.0,0.00025521,2]
[424990049,1781380240000,-500.0,0.00025521,2]
[424990050,1781380240000,-500.0,0.00025521,2]
[424990057,1781380240000,-500.0,0.00025521,2]
[424990048,1781380240000,-850.23,0.00025513,3]
[424990053,1781380240000,-500.0,0.00025521,2]
[424990054,1781380240000,-500.0,0.00025521,2]
[424990055,1781380240000,-500.0,0.00025521,2]
[424990066,1781380240000,-500.0,0.00025521,2]
[424990067,1781380240000,-520.19578471,0.00025521,2]
[424990065,1781380240000,-500.0,0.00025521,2]
[424990052,1781380240000,-259.20980611,0.00025521,2]
[424990076,1781380240000,-306.193536,0.00025522,2]
[424990081,1781380240000,-366.139405,0.00025522,2]
[424990074,1781380240000,-151.0,0.00025521,2]
[424990073,1781380240000,-592.413941,0.00025521,2]
[424990109,1781380240000,-151.0,0.00025522,2]
[424990108,1781380240000,-2937.020415,0.00025522,2]
[424990110,1781380240000,-2937.020415,0.00025522,2]
[424990107,1781380240000,-2937.020415,0.00025522,2]
[424990103,1781380240000,-151.0,0.00025522,2]
[424990104,1781380240000,-252.202125,0.00025522,2]
[424990105,1781380240000,-2937.020415,0.00025522,2]
[424990101,1781380240000,-151.0,0.00025522,2]
[424990102,1781380240000,-250.247693,0.00025522,2]
[424990099,1781380240000,-151.0,0.00025522,2]
[424990095,1781380240000,-151.0,0.00025522,2]
[424990100,1781380240000,-2937.020415,0.00025522,2]
[424990097,1781380240000,-151.0,0.00025522,2]
[424990098,1781380240000,-2937.020415,0.00025522,2]
[424990091,1781380240000,-151.0,0.00025522,2]
[424990096,1781380240000,-250.247693,0.00025522,2]
[424990077,1781380240000,-366.139405,0.00025522,2]
[424990106,1781380240000,-2937.020415,0.00025522,2]
[424990084,1781380240000,-2737.896093,0.00025522,2]
[424990083,1781380240000,-366.139405,0.00025522,2]
[424990090,1781380240000,-151.0,0.00025522,2]
[424990087,1781380240000,-2737.896093,0.00025522,2]
[424990072,1781380240000,-433.68316397,0.00025521,2]
[424990088,1781380240000,-2737.896093,0.00025522,2]
[424990094,1781380240000,-151.0,0.00025522,2]
[424990092,1781380240000,-250.247693,0.00025522,2]
[424990093,1781380240000,-250.247693,0.00025522,2]
[424990082,1781380240000,-306.193536,0.00025522,2]
[424990085,1781380240000,-2737.896093,0.00025522,2]
[424990089,1781380240000,-151.0,0.00025522,2]
[424990111,1781380241000,-151.0,0.00025522,2]
[424990112,1781380241000,-94.70720082,0.00025522,2]
[424990174,1781380246000,-151.0,0.00025522,2]
[424990176,1781380246000,-500.0,0.00025522,2]
[424990179,1781380246000,-500.0,0.00025522,2]
[424990183,1781380246000,-500.0,0.00025522,2]
[424990181,1781380246000,-500.0,0.00025522,2]
[424990178,1781380246000,-500.0,0.00025522,2]
[424990167,1781380246000,-592.413941,0.00025521,2]
[424990169,1781380246000,-592.413941,0.00025521,2]
[424990173,1781380246000,-151.0,0.00025522,2]
[424990171,1781380246000,-2842.31321418,0.00025522,2]
[424990184,1781380246000,-151.0,0.00025522,2]
[424990188,1781380246000,-500.0,0.00025522,2]
[424990186,1781380246000,-500.0,0.00025522,2]
[424990193,1781380246000,-151.0,0.00025522,2]
[424990192,1781380246000,-442.89168259,0.00025522,2]
[424990195,1781380246000,-500.0,0.00025522,2]
[424990197,1781380246000,-500.0,0.00025522,2]
[424990198,1781380246000,-500.0,0.00025522,2]
[424990200,1781380246000,-344.03210646,0.00025522,2]
[424990189,1781380246000,-57.10831741,0.00025522,2]
[424990202,1781380246000,-448.055321,0.00025522,2]
[424990260,1781380248000,-364.9,0.00025522,2]
[424990257,1781380248000,-312.580009,0.00025522,2]
[424990255,1781380248000,-364.9,0.00025522,2]
[424990252,1781380248000,-312.580009,0.00025522,2]
[424990251,1781380248000,-312.580009,0.00025522,2]
[424990254,1781380248000,-364.9,0.00025522,2]
[424990250,1781380248000,-51.944679,0.00025522,2]
[424990261,1781380248000,-312.580009,0.00025522,2]
[424990256,1781380248000,-312.580009,0.00025522,2]
[424990258,1781380248000,-312.580009,0.00025522,2]
[424990265,1781380248000,-312.580009,0.00025522,2]
[424990262,1781380248000,-364.9,0.00025522,2]
[424990259,1781380248000,-312.580009,0.00025522,2]
[424990270,1781380248000,-312.580009,0.00025522,2]
[424990263,1781380248000,-312.580009,0.00025522,2]
[424990271,1781380248000,-289.99424915,0.00025522,2]
[424990266,1781380248000,-312.580009,0.00025522,2]
[424990268,1781380248000,-312.580009,0.00025522,2]
[424990264,1781380248000,-312.580009,0.00025522,2]
[424990267,1781380248000,-364.9,0.00025522,2]
[424990269,1781380248000,-364.9,0.00025522,2]
[424990278,1781380968000,-152.0,0.00019,20]
[424990865,1781382632000,-61.32307358,0.00017018,2]
[424990863,1781382632000,-221.87598124,0.00016848,2]
[424990954,1781382640000,-151.40974605,0.00018761,2]
[424990949,1781382640000,-255.31393642,0.00017018,2]
[424990951,1781382640000,-191.90964617,0.0001752,2]
[424990950,1781382640000,-248.87293219,0.0001719,2]
[424990953,1781382640000,-181.20350681,0.00018156,2]
[424990952,1781382640000,-345.43736311,0.0001752,2]
[424990957,1781382640000,-194.91769547,0.00019047,2]
[424990956,1781382640000,-212.81757467,0.00019,20]
[424990958,1781382640000,-223.06389588,0.00019105,2]
[424990959,1781382640000,-500.0,0.00020199,2]
[424990960,1781382640000,-10083.8364203,0.000202,2]
[424990955,1781382640000,-272.5375429,0.00018761,2]
[424990983,1781382647000,-4472.92324532,0.000202,2]
[424991031,1781382749000,-208.39834664,0.00019484,14]
[424991032,1781382766000,-5456.15475503,0.000202,2]
[424991033,1781382783000,-484.02667619,0.00020455,2]
[424991037,1781382800000,-484.02667619,0.00019432,2]
[424991038,1781382817000,-299.35268247,0.00020478,2]
[424991039,1781382833000,-500.0,0.00020199,2]
[424991112,1781383832000,-576.21868928,0.00025051,5]
[424991089,1781383832000,-554.3910619,0.00019748,2]
[424991092,1781383832000,-187.59474537,0.00020788,2]
[424991091,1781383832000,-321.97362574,0.00020199,2]
[424991090,1781383832000,-500.0,0.00020199,2]
[424991093,1781383832000,-337.33287113,0.00020788,2]
[424991094,1781383832000,-229.15,0.00021438,2]
[424991095,1781383832000,-347.59489391,0.00021569,2]
[424991096,1781383832000,-179.897804,0.00023102,2]
[424991098,1781383832000,-212.0,0.00023288,9]
[424991097,1781383832000,-4919.3065749,0.00023286,2]
[424991099,1781383832000,-173.394795,0.00023725,2]
[424991104,1781383832000,-201.77,0.0002455,2]
[424991101,1781383832000,-176.76582711,0.00024073,2]
[424991111,1781383832000,-248.7518,0.00025015,2]
[424991108,1781383832000,-183.07140651,0.00024948,2]
[424991109,1781383832000,-413.16718786,0.00025009,2]
[424991106,1781383832000,-353.53165422,0.00024948,2]
[424991110,1781383832000,-1812.10459049,0.00025009,2]
[424991100,1781383832000,-175.64755011,0.00024073,2]
[424991105,1781383832000,-351.29510022,0.00024947,2]
[424991103,1781383832000,-777.1126178,0.000241,2]
[424991102,1781383832000,-18.8873822,0.000241,2]
[424991107,1781383832000,-206.55127574,0.00024948,2]
[424991152,1781383838000,-151.0,0.00025108,2]
[424991139,1781383838000,-423.78131072,0.00025051,5]
[424991143,1781383838000,-179.68,0.00025099,3]
[424991141,1781383838000,-359.37,0.00025099,3]
[424991145,1781383838000,-539.09,0.00025099,3]
[424991148,1781383838000,-235.4880464,0.00025108,2]
[424991151,1781383838000,-151.0,0.00025108,2]
[424991149,1781383838000,-158.508,0.00025108,9]
[424991150,1781383838000,-151.0,0.00025108,2]
[424991154,1781383838000,-151.0,0.00025108,2]
[424991147,1781383838000,-500.0,0.00025108,9]
[424991155,1781383838000,-151.0,0.00025108,2]
[424991156,1781383838000,-151.0,0.00025108,2]
[424991158,1781383838000,-989.173363,0.00025108,2]
[424991162,1781383838000,-826.82179339,0.00025108,2]
[424991161,1781383838000,-989.173363,0.00025108,2]
[424991159,1781383838000,-989.173363,0.00025108,2]
[424991157,1781383838000,-151.0,0.00025108,2]
[424991163,1781383838000,-162.35156961,0.00025108,2]
[424991164,1781383838000,-989.173363,0.00025108,2]
[424991160,1781383838000,-989.173363,0.00025108,2]
[424991153,1781383838000,-151.0,0.00025108,2]
[424991178,1781383839000,-540.44525258,0.00025108,2]
[424991181,1781383839000,-500.0,0.00025108,2]
[424991180,1781383839000,-500.0,0.00025108,2]
[424991183,1781383839000,-168.91064275,0.00025108,2]
[424991185,1781383839000,-195.46775624,0.00025108,2]
[424991184,1781383839000,-500.0,0.00025108,2]
[424991179,1781383839000,-500.0,0.00025108,2]
[424991186,1781383839000,-347.65969557,0.00025108,2]
[424991182,1781383839000,-500.0,0.00025108,2]
[424991177,1781383839000,-500.0,0.00025108,2]
[424991172,1781383839000,-200.85828395,0.00025108,2]
[424991176,1781383839000,-500.0,0.00025108,2]
[424991174,1781383839000,-500.0,0.00025108,2]
[424991167,1781383839000,-151.0,0.00025108,2]
[424991173,1781383839000,-500.0,0.00025108,2]
[424991171,1781383839000,-500.0,0.00025108,2]
[424991170,1781383839000,-473.931153,0.00025108,2]
[424991168,1781383839000,-151.0,0.00025108,2]
[424991169,1781383839000,-188.0,0.00025108,2]
[424991166,1781383839000,-989.173363,0.00025108,2]
[424991187,1781383839000,-500.0,0.00025108,2]
[424991175,1781383839000,-500.0,0.00025108,2]
[424991188,1781383839000,-500.0,0.00025108,2]
[424991203,1781383839000,-151.0,0.00025109,2]
[424991189,1781383839000,-500.0,0.00025108,2]
[424991165,1781383839000,-989.173363,0.00025108,2]
[424991210,1781383839000,-989.173363,0.00025109,2]
[424991211,1781383839000,-989.173363,0.00025109,2]
[424991208,1781383839000,-989.173363,0.00025109,2]
[424991209,1781383839000,-989.173363,0.00025109,2]
[424991207,1781383839000,-300.0,0.00025109,3]
[424991205,1781383839000,-151.0,0.00025109,2]
[424991206,1781383839000,-151.0,0.00025109,2]
[424991204,1781383839000,-151.0,0.00025109,2]
[424991200,1781383839000,-500.0,0.00025108,2]
[424991197,1781383839000,-500.0,0.00025108,2]
[424991199,1781383839000,-500.0,0.00025108,2]
[424991201,1781383839000,-400.0,0.00025108,2]
[424991196,1781383839000,-500.0,0.00025108,2]
[424991202,1781383839000,-180.0,0.00025108,2]
[424991198,1781383839000,-500.0,0.00025108,2]
[424991194,1781383839000,-500.0,0.00025108,2]
[424991195,1781383839000,-545.0,0.00025108,2]
[424991192,1781383839000,-500.0,0.00025108,2]
[424991193,1781383839000,-500.0,0.00025108,2]
[424991191,1781383839000,-500.0,0.00025108,2]
[424991190,1781383839000,-500.0,0.00025108,2]
[424991212,1781383839000,-1284051.74723482,0.00025109,2]
[424991293,1781383844000,-300.0,0.00024999,3]
[424991463,1781383846000,-4667.28954959,0.00024999,3]
[424991464,1781383846000,-472.07045041,0.00025108,2]
[424991466,1781383847000,-453.95929741,0.00025108,2]
[424991465,1781383847000,-1.86070259,0.00025108,2]
[424991670,1781385032000,-539.09,0.00024204,3]
[424991678,1781385032000,-203.18914806,0.00024212,2]
[424991680,1781385032000,-402.07730657,0.00024212,2]
[424991688,1781385032000,-235.4880464,0.00024213,2]
[424991682,1781385032000,-500.0,0.00024212,2]
[424991685,1781385032000,-500.0,0.00024212,2]
[424991690,1781385032000,-500.0,0.00024213,2]
[424991692,1781385032000,-193.09328647,0.00024213,2]
[424991694,1781385032000,-500.0,0.00024213,2]
[424991674,1781385032000,-500.0,0.00024212,2]
[424991706,1781385032000,-500.0,0.00024213,2]
[424991708,1781385032000,-500.0,0.00024213,2]
[424991710,1781385032000,-500.0,0.00024213,2]
[424991698,1781385032000,-500.0,0.00024213,2]
[424991700,1781385032000,-500.0,0.00024213,2]
[424991711,1781385032000,-500.0,0.00024213,2]
[424991713,1781385032000,-500.0,0.00024213,2]
[424991696,1781385032000,-500.0,0.00024213,2]
[424991672,1781385032000,-254.41422873,0.00024212,2]
[424991665,1781385032000,-1000.0,0.00024142,5]
[424991704,1781385032000,-500.0,0.00024213,2]
[424991637,1781385032000,-237.95747478,0.00019726,2]
[424991639,1781385032000,-808.94598774,0.00020121,7]
[424991633,1781385032000,-808.94598774,0.00019726,7]
[424991635,1781385032000,-232.20065191,0.00019726,7]
[424991641,1781385032000,-232.20065191,0.00020121,7]
[424991647,1781385032000,-808.94598774,0.00021304,7]
[424991649,1781385032000,-232.20065191,0.00021304,7]
[424991644,1781385032000,-808.94598774,0.00020712,7]
[424991646,1781385032000,-232.20065191,0.00020712,7]
[424991651,1781385032000,-808.94598778,0.00022093,7]
[424991655,1781385032000,-970.91547704,0.00022093,2]
[424991653,1781385032000,-232.20065192,0.00022093,7]
[424991657,1781385032000,-1046.33787656,0.000225,2]
[424991659,1781385032000,-221.12283008,0.00023853,2]
[424991661,1781385032000,-706.88546318,0.00023853,2]
[424991663,1781385032000,-154.25692621,0.00024071,2]
[424991666,1781385032000,-359.37,0.00024204,3]
[424991668,1781385032000,-179.68,0.00024204,3]
[424991702,1781385032000,-500.0,0.00024213,2]
[424991676,1781385032000,-500.0,0.00024212,2]
[424991719,1781385032000,-500.0,0.00024213,2]
[424991762,1781385032000,-1248.80108992,0.00024213,2]
[424991759,1781385032000,-1431.30891008,0.00024213,2]
[424991757,1781385032000,-2680.11,0.00024213,2]
[424991766,1781385032000,-2680.11,0.00024213,2]
[424991774,1781385032000,-943.64292358,0.00024213,2]
[424991770,1781385032000,-1091.07779986,0.00024213,2]
[424991778,1781385032000,-2680.11,0.00024213,2]
[424991772,1781385032000,-53.67929879,0.00024213,2]
[424991756,1781385032000,-2680.11,0.00024213,2]
[424991776,1781385032000,-1736.46707642,0.00024213,2]
[424991786,1781385032000,-2680.11,0.00024213,2]
[424991788,1781385032000,-2680.11,0.00024213,2]
[424991782,1781385032000,-2680.11,0.00024213,2]
[424991784,1781385032000,-2680.11,0.00024213,2]
[424991793,1781385032000,-2680.11,0.00024213,2]
[424991790,1781385032000,-2680.11,0.00024213,2]
[424991715,1781385032000,-500.0,0.00024213,2]
[424991795,1781385032000,-921.84629482,0.00024213,2]
[424991780,1781385032000,-2680.11,0.00024213,2]
[424991768,1781385032000,-1535.35290135,0.00024213,2]
[424991797,1781385032000,-276.36,0.00024213,2]
[424991750,1781385032000,-158.508,0.00024213,6]
[424991754,1781385032000,-2680.11,0.00024213,2]
[424991720,1781385032000,-500.0,0.00024213,2]
[424991726,1781385032000,-500.0,0.00024213,2]
[424991730,1781385032000,-500.0,0.00024213,2]
[424991717,1781385032000,-500.0,0.00024213,2]
[424991724,1781385032000,-500.0,0.00024213,2]
[424991732,1781385032000,-500.0,0.00024213,2]
[424991728,1781385032000,-500.0,0.00024213,2]
[424991736,1781385032000,-500.0,0.00024213,2]
[424991722,1781385032000,-500.0,0.00024213,2]
[424991740,1781385032000,-422.2029091,0.00024213,2]
[424991742,1781385032000,-500.0,0.00024213,2]
[424991734,1781385032000,-500.0,0.00024213,2]
[424991744,1781385032000,-500.0,0.00024213,2]
[424991748,1781385032000,-500.0,0.00024213,2]
[424991746,1781385032000,-500.0,0.00024213,2]
[424991752,1781385032000,-2680.11,0.00024213,2]
[424991764,1781385032000,-2680.11,0.00024213,2]
[424991738,1781385032000,-500.0,0.00024213,2]
[424991970,1781385038000,-500.0,0.00025207,2]
[424991969,1781385038000,-500.0,0.00025207,2]
[424991956,1781385038000,-300.0,0.00025088,2]
[424991959,1781385038000,-151.0,0.000251,17]
[424991957,1781385038000,-300.0,0.00025088,3]
[424991949,1781385038000,-407.12116816,0.00024818,2]
[424991967,1781385038000,-500.0,0.00025207,2]
[424991958,1781385038000,-151.0,0.000251,14]
[424991961,1781385038000,-173.19452066,0.00025108,2]
[424991962,1781385038000,-327.52,0.00025109,2]
[424991968,1781385038000,-500.0,0.00025207,2]
[424991963,1781385038000,-327.52,0.00025109,2]
[424991964,1781385038000,-327.52,0.00025109,2]
[424991965,1781385038000,-327.52,0.00025109,2]
[424991966,1781385038000,-151.0,0.000252,16]
[424991945,1781385038000,-610.617275,0.00024694,2]
[424991971,1781385038000,-327.52,0.00025208,2]
[424991960,1781385038000,-292.6884828,0.00025108,2]
[424991953,1781385038000,-184.74494805,0.00024946,2]
[424991921,1781385038000,-2680.11,0.00024213,2]
[424991955,1781385038000,-1771.5819655,0.00025088,2]
[424991972,1781385038000,-327.52,0.00025208,2]
[424991917,1781385038000,-1481.90370518,0.00024213,2]
[424991933,1781385038000,-226.70767475,0.00024213,2]
[424991931,1781385038000,-500.0,0.00024213,2]
[424991919,1781385038000,-2680.11,0.00024213,2]
[424991937,1781385038000,-211921.78102436,0.00024214,2]
[424991935,1781385038000,-289620.96137564,0.00024214,2]
[424991939,1781385038000,-197.45,0.00024214,2]
[424991941,1781385038000,-500.0,0.00024216,2]
[424991923,1781385038000,-2680.11,0.00024213,2]
[424991925,1781385038000,-2680.11,0.00024213,2]
[424991929,1781385038000,-2680.16250277,0.00024213,2]
[424991927,1781385038000,-2680.11,0.00024213,2]
[424991943,1781385038000,-185.34,0.00024548,2]
[424991947,1781385038000,-247.7443,0.000247,2]
[424991954,1781385038000,-204.92214179,0.00024946,2]
[424991950,1781385038000,-206.2792462,0.00024946,2]
[424991952,1781385038000,-308.51385241,0.00024946,2]
[424991973,1781385038000,-327.52,0.00025208,2]
[424991992,1781385038000,-369.680832,0.00025208,2]
[424991975,1781385038000,-151.0,0.00025208,2]
[424992000,1781385038000,-351.87672447,0.000253,2]
[424991998,1781385038000,-323.87764141,0.000253,2]
[424991999,1781385038000,-348.03220399,0.000253,2]
[424992002,1781385038000,-151.0,0.000253,15]
[424992008,1781385038000,-250.0,0.000254,2]
[424992004,1781385038000,-250.0,0.000254,2]
[424992009,1781385038000,-250.0,0.000254,2]
[424992003,1781385038000,-250.0,0.000254,2]
[424992007,1781385038000,-250.0,0.000254,2]
[424992005,1781385038000,-250.0,0.000254,2]
[424992006,1781385038000,-250.0,0.000254,2]
[424992011,1781385038000,-250.0,0.000254,2]
[424992010,1781385038000,-250.0,0.000254,2]
[424992013,1781385038000,-33717.10760241,0.00025444,2]
[424992012,1781385038000,-358.7,0.000254,2]
[424992014,1781385038000,-5077.43394479,0.00025444,2]
[424991977,1781385038000,-151.0,0.00025208,2]